Cogmind - Beta 15 @@@ ROGUE MODE // 2025.07.06 @ 20:52:56 Player: Skysub Result: Destroyed by S-10 Pest with Light Assault Rifle Performance ------------- Evolutions (0) 0 Regions Visited (1) 200 Robots Destroyed (15) 75 Value Destroyed (236) 236 Prototype IDs (0) 0 Alien Tech Used (0) 0 Bonus (0) 0 TOTAL SCORE: 511 Bonus ------- None Cogmind --------- Core Integrity 0/250 Matter 253/300 Energy 32/100 System Corruption 0% Temperature Cool (0) Movement Core (200) Ox3 Location -10/Materials Parts ------- > --- POWER (1) -------- (None) > --- PROPULSION (2) --- (None) > --- UTILITY (2) ------ Small Storage Unit Improved Terrain Scanner > --- WEAPON (2) ------- EMP Blaster > --- INVENTORY (8) ---- Wheel Structural Scanner Signal Interpreter Medium Laser Mining Laser Peak State ------------ > --- POWER ------------ Light Ion Engine > --- PROPULSION ------- Light Treads Light Treads > --- UTILITY ---------- Small Storage Unit Improved Terrain Scanner > --- WEAPON ----------- Light Assault Rifle Light Assault Rifle > --- INVENTORY -------- Light Ion Engine Wheel Structural Scanner Signal Interpreter Medium Laser EMP Blaster EMP Blaster Mining Laser [Rating: 10] Favorites ----------- Power Light Ion Engine Engine Light Ion Engine Propulsion Light Treads Treads Light Treads Utility Small Storage Unit Device Improved Terrain Scanner Storage Small Storage Unit Weapon Light Assault Rifle Energy Gun Medium Laser Ballistic Gun Light Assault Rifle Launcher EMP Blaster Build | -11 -10 ------- Run | Yrd Mat Slots Evolved . | . . Power . | . . Propulsion . | . . Utility . | . . Weapon . | . . Parts Attached 11 | 8 3 Power 2 | 1 1 Engine 2 | 1 1 Core . | . . Reactor . | . . Propulsion 2 | 2 . Treads 2 | 2 . Leg . | . . Wheel . | . . Hover . | . . Flight . | . . Utility 2 | 2 . Device 1 | 1 . Storage 1 | 1 . Processor . | . . Hackware . | . . Protection . | . . Artifact . | . . Weapon 5 | 3 2 Energy Gun 1 | 1 . Energy Cannon . | . . Ballistic Gun 2 | 2 . Ballistic Cannon . | . . Launcher 2 | . 2 Special Weapon . | . . Impact Weapon . | . . Slashing Weapon . | . . Piercing Weapon . | . . Special Melee Weapon . | . . Unidentified Prototypes . | . . Parts Lost 7 | . 7 Power 2 | . 2 Propulsion 2 | . 2 Utility . | . . Weapon 3 | . 3 Highest Loss Streak 7 | . 7 To Critical Strikes . | . . Average Backups 4 | 2 5 Power . | . . Propulsion . | . 1 Utility . | . 1 Weapon 1 | . 2 Tool/Special . | . . Unused Backups 4 | . 4 Power . | . . Propulsion 1 | . 1 Utility 2 | . 2 Weapon 1 | . 1 Tool/Special . | . . Average Slot Usage (%) 96 | . 96 Engine 13 | . 13 Treads 26 | . 26 Device 14 | . 14 Storage 14 | . 14 Ballistic Gun 26 | . 26 Peak Build Rating 10 | 9 10 Average Rating 8 | 7 8 On Entrance 4 | . 9 Naked Turns . | . . Heaviest Build 11 | 11 11 Greatest Support 40 | 40 40 Greatest Overweight (x) 2 | 2 . Average Overweight (x) . | . . Largest Inventory Capacity 8 | 8 8 Average Capacity 7 | 7 8 Most Carried 8 | 4 8 Average Carried 4 | 2 5 Final Capacity 8 | 8 8 Final Carried 5 | 4 5 Class Distribution -------------------- 100% | Mutant Dominant Class ---------------- Mutant | -10/Materials Resources | -11 -10 ----------- Run | Yrd Mat Matter Collected 372 | 344 28 Remotely . | . . Salvage Created 413 | 209 204 Parts 35 | 22 13 Haulers Intercepted . | . . Recyclers Shooed . | . . Parts Field Recycled . | . . Retrieved Matter . | . . Parts Self-Destructed . | . . Prevented . | . . Kills | -11 -10 ------- Run | Yrd Mat Combat Hostiles Destroyed 4 | . 4 Guns 2 | . 2 AOE 2 | . 2 Classes Destroyed 7 | 3 4 Worker 2 | 2 . Builder 1 | . 1 Tunneler 6 | 6 . Recycler 1 | 1 . Mechanic 1 | . 1 Swarmer 1 | . 1 Grunt 3 | . 3 Best Kill Streak 4 | 4 3 Combat Bots Only 2 | . 2 Max Kills in Single Turn 2 | 1 2 Gunslinging . | . . Exploded 1 | . 1 Melee . | . . Uniques/NPCs Destroyed . | . . Combat | -11 -10 -------- Run | Yrd Mat Hostile Shots Fired 98 | . 98 Missed 10 | . 10 Hits 88 | . 88 Projectile 88 | . 88 Critical Strikes 2 | . 2 Damage Taken 984 | . 984 Core 253 | . 253 Absorbed by Shields . | . . Core Remaining (%) 100 | 100 . Volleys Fired 60 | 32 28 Largest 2 | 2 2 Hottest 40 | 40 40 Shots Fired 118 | 64 54 Gun 116 | 64 52 Cannon . | . . Launcher 2 | . 2 Special . | . . Kinetic 116 | 64 52 Thermal . | . . Explosive . | . . Electromagnetic 2 | . 2 Robot Hit Streak 12 | 12 10 Robot Miss Streak 5 | 5 4 Penetration Max . | . . Secondary Targets . | . . Shots Hit Robots 68 | 35 33 Core Hits 33 | 18 15 Critical Kills . | . . Critical Parts Destroyed . | . . Critical Strikes . | . . Melee Attacks . | . . Impact . | . . Slashing . | . . Piercing . | . . Sneak Attacks . | . . Combat Hostiles . | . . Follow-up Attacks . | . . Damage Inflicted 803 | 294 509 Guns 560 | 294 266 Cannons . | . . Explosions 240 | . 240 Melee . | . . Ramming 3 | . 3 Kinetic 560 | 294 266 Thermal 67 | . 67 Explosive . | . . Electromagnetic 173 | . 173 Impact . | . . Slashing . | . . Piercing . | . . Highest Corruption . | . . Average Corruption . | . . Corruption Purged . | . . Corruption Blocked . | . . Overload Shots . | . . Overflow Damage 26 | . 26 Projectiles . | . . Explosions 26 | . 26 Melee . | . . Knockbacks . | . . Impact . | . . Kinetic . | . . Secondary . | . . Self-Inflicted Damage 64 | . 64 Shots 3 | . 3 Rammed 1 | . 1 Targets Rammed 1 | . 1 Kicked . | . . Crushed . | . . Highest Temperature 50 | . 50 Average Temperature 20 | . 20 Received Heat Transfer 339 | . 339 Siege Activations . | . . Martial Activations . | . . Shielding Activations . | . . Robots Disrupted . | . . Combat Hostiles . | . . Robots Corrupted . | . . Combat Hostiles . | . . Parts Fried . | . . Impact Corruptions . | . . Robots Melted . | . . Combat Hostiles . | . . Parts Melted . | . . Heat Transferred 50 | . 50 Parts Sabotaged . | . . Parts Stolen . | . . Parts Stripped . | . . Power Chain Reactions 1 | . 1 Alert | -11 -10 ------- Run | Yrd Mat Maximum Alert Level . | . . Low Security (%) 100 | 100 100 Level 1 . | . . Level 2 . | . . Level 3 . | . . Level 4 . | . . Level 5 . | . . High Security . | . . Max Security . | . . Peak Influence 84 | 10 84 Initial . | . . Average 7 | 1 12 Influence Increases 218 | 45 173 Destroy 0b10 Robot/C 80 | . 80 Destroy 0b10 Robot/NC 55 | 45 10 Destroy Leader 20 | . 20 Successful Hack 14 | . 14 Disable Machine 45 | . 45 Destroy Structure 4 | . 4 Influence Decreases 144 | 45 99 Time Decay 124 | 45 79 Lost Part 20 | . 20 Squads Dispatched . | . . Investigation . | . . Extermination . | . . Reinforcement . | . . Assault . | . . Garrison . | . . Intercept . | . . Searches Triggered . | . . Construction Impeded . | . . Haulers Reinforced . | . . Active Scanning Responses . | . . Cargo Convoy Interrupts . | . . Stealth | -11 -10 --------- Run | Yrd Mat Distress Signals . | . . Communications Jammed . | . . Distress Signals . | . . Times Spotted 11 | . 11 Peak Tracking Total 5 | . 5 Tactical Retreats . | . . Traps | -11 -10 ------- Run | Yrd Mat Traps Triggered 1 | . 1 Indirectly . | . . Trap Hack Attempts . | . . Triggered . | . . Disarmed . | . . Reprogrammed . | . . Reused . | . . Traps Extracted . | . . Installed . | . . Triggered . | . . Machines | -11 -10 ---------- Run | Yrd Mat Machines Disabled 3 | . 3 Max in Single Turn 3 | . 3 Machines Repaired . | . . Machines Dismantled . | . . Machines Sabotaged . | . . Overloaded Fab Kills . | . . Hacking | -11 -10 --------- Run | Yrd Mat Machines Accessed 4 | . 4 Terminals 4 | . 4 Fabricators . | . . Repair Stations . | . . Recycling Units . | . . Scanalyzers . | . . Garrison Access . | . . Total Hacks 9 | . 9 Successful 5 | . 5 Failed 4 | . 4 Catastrophic . | . . Database Lockouts . | . . Manual 9 | . 9 Terminals 9 | . 9 Fabricators . | . . Repair Stations . | . . Recycling Units . | . . Scanalyzers . | . . Garrison Access . | . . Terminal Hacks . | . . Fabricator Hacks . | . . Repair Station Hacks . | . . Recycling Unit Hacks . | . . Scanalyzer . | . . Garrison Access Hacks . | . . Unauthorized Hacks 5 | . 5 Terminals 5 | . 5 Botnet 2 | . 2 Skim 3 | . 3 Fabricators . | . . Repair Stations . | . . Recycling Units . | . . Scanalyzers . | . . Garrison Access . | . . Data Cores Recovered . | . . Used . | . . Hacking Detections 4 | . 4 Full Trace Events . | . . Feedback Events . | . . Feedback Blocked . | . . Robot Schematics Acquired . | . . Robots Built . | . . Authchips . | . . Time . | . . Total Robot Build Rating . | . . Part Schematics Acquired . | . . Parts Built . | . . Authchips . | . . Time . | . . Total Part Build Rating . | . . Parts Repaired . | . . Time . | . . Parts Recycled . | . . Recycled Matter . | . . Retrieved Matter . | . . Retrieved Components . | . . Parts Scanalyzed . | . . Part Schematics Acquired . | . . Parts Damaged . | . . Bothacking | -11 -10 ------------ Run | Yrd Mat Used RIF Installer . | . . Robots Hacked . | . . Non-combat . | . . Combat . | . . Robot Hacks Applied . | . . Relay Couplers Released . | . . Fabnet Peak Effective % . | . . Robots Rewired . | . . Allies Hacked . | . . Hacks Repelled . | . . Allies | -11 -10 -------- Run | Yrd Mat Total Allies . | . . Largest Group . | . . Highest-Rated Group . | . . Highest-Rated Ally . | . . Total Orders . | . . Ally Attacks . | . . Total Damage . | . . Kills . | . . Allies Corrupted . | . . Allies Melted . | . . Intel | -11 -10 ------- Run | Yrd Mat Active Infowar (turns) 537 | 176 361 Terrain 537 | 176 361 Robot Analysis Total . | . . Derelict Logs Recovered . | . . Drone Launches . | . . Drone Recoveries . | . . Exploration | -11 -10 ------------- Run | Yrd Mat Turns Passed 688 | 327 361 Spaces Moved 301 | 144 157 Core 4 | 4 . Treads 297 | 140 157 Legs . | . . Wheels . | . . Hover . | . . Flight . | . . Fastest Speed 50 | 50 160 Average Speed 159 | 158 160 Slowest Speed 160 | 160 160 Overloaded Moves . | . . Propulsion Burnouts . | . . Robots Hopped . | . . Potential Cave-ins . | . . Cave-ins Triggered . | . . Exploration Rate (%) 23 | 7 40 Regions Visited 1 Branch Regions . Pre-discovered Areas . | . . Known Exits Taken . | . . Unknown Exits Taken 1 | 1 . Scrap Searched . | . . Spaces Dug . | . . Terrain Destroyed 3 | . 3 Melee . | . . Projectile . | . . AOE 3 | . 3 Terrain Rammed . | . . Walls Destroyed . | . . Machines Disabled . | . . Actions | -11 -10 --------- Run | Yrd Mat Total 409 | 188 221 Wait 26 | . 26 Move 300 | 143 157 Hop . | . . Pick Up 9 | 5 4 Fast Attach 8 | 6 2 Attach 4 | 1 3 Detach . | . . Swap 1 | 1 . Drop . | . . Fire 60 | 32 28 Melee . | . . Ram . | . . Kick . | . . Crush 1 | . 1 Escape Stasis . | . . Rewire . | . . Trap . | . . Miscellaneous . | . . Route ------- -11/Scrapyard -10/Materials (discovered 1 exit: [*Min]) History --------- Turn | Location | Event 28 | -11/Scrapyard | Discovered new exit (range 15) 328 | -11/Scrapyard | Entered Materials 329 | -10/Materials | Build established: Mutant 597 | -10/Materials | Discovered new exit (range 10) 668 | -10/Materials | Core integrity fell below 50% 681 | -10/Materials | Core integrity fell below 20% 689 | -10/Materials | Destroyed by S-10 Pest with Light Assault Rifle Last Messages --------------- 00670_ U-05 Engineer lays Concrete. 00671_ Destroyed Flight Unit. 00671_ Atomic Centrifuge disabled. 00671_ Terminal disabled. 00671_ G-47 Trooper destroyed. 00671_ Door malfunctions. 00674_ K-01 Serf cleans the Nuclear Reactor. 00676_ EMP Blaster destroyed. 00678_ G-34 Mercenary IFF system glitched. 00678_ S-10 Pest IFF system glitched. 00680_ S-10 Pest destroyed. 00680_ Chain reaction triggered in Corrupted Lgt. Nuclear Core. 00680_ Destroyed Lgt. Ion Engine. 00680_ Destroyed Welding Torch. 00680_ U-05 Engineer destroyed. 00680_ Lgt. Ion Engine destroyed. 00680_ Destroyed Lgt. Ion Engine. 00683_ K-01 Serf collects debris. 00688_ G-34 Mercenary IFF system glitched. 00688_ K-01 Serf collects debris. Map ----- +----------------------------------------------------+ | | | | | | | | | | | ?????????????????????????????????????????????????? | | ?????????????????????????????????????????????????? | | ?????????????????????????????????????????????????? | | ?????????????????????????????????????????????????? | | ?????????????????????????????????????????????????? | | ?????????????????????????????????????????????????? | | ???????????????????????#????????????#????????????? | | ???????????????????? ??????????#?????????????????? | | ???????????????????????#??????#####??????????????? | | ??????????????????????????#??##"""##?????????????? | | ????????????????????????????##"!!!"##????????????? | | ???????????????????? ???????#"" ""#????????????? | | ???????????????????? #????# #????????????? | | ????????????????????? ??????# < ##???????????? | | ??????????????########+#???## ##?#??#??????? | | ??????????? ??? ! ??## #?#??????????? | | ?????????????#?""" = k ????# #??#??????????? | | ???????????????""" "??#### #####?#????????? | | ?????????????# """ /! ! T### ## !!#??????????? | | ?????????????# ! s ; !!#??????????? | | ?????????????#! g@ =a ]#??????????? | | ???????????????########+#;%s [ " ]#??????????? | | ????????????????????### #; =% " !!#??????????? | | ????????????????????# !!##?????????? | | ?????????? ?????????# #####?#????????? | | ?????????? ? ?#?????# !#??????????????? | | ????????????????#???# #??????#???????? | | ????????????????????# r ##+######????#?????????? | | ?????????????#??????## ## #????????????????? | | ?????????? ######### ## """ #????????????????? | | ?????????# ## "R" ##?#??#?????????#? | | ?????????+ +%" " ########?????????? | | ?????????# ## # #?????????? | | ?????????????########### ## % # #?????????? | | ???????????????????????# ## !# """ "#?????????? | | ?????????????########### ######## """ T#???#?????? | | ???????? ????# # #??????# """ "#?????#???? | | ??????? # # #???#??# #?????????? | | ?????????# / + ##########/############?? | | ?????????????# # + #?? | | ?????????????# # # ! #?? | | ?????????????# # # """##? | | ?????????????# # # ! """#?? | | ?????????????# + % + """#?? | | ?????????????###################### # """#?? | +----------------------------------------------------+ Best States ------------- Heat Dissipation 25 Energy Generation 10 Energy Capacity 125 Matter Stores 300 Matter Capacity 300 Sight Range 16 Terrain Scan Range 16 Terrain Scan Density 10 Evasion (%) 40 Recoil Reduction 2 Item Schematics ----------------- None Robot Schematics ------------------ None Fabricated ------------ Nothing Repaired ---------- Nothing Alien Tech Used ----------------- None Achievements -------------- None Challenges ------------ None Game ------ Seed PhasingAssembledNetwork Manual? 0 Play Time 00:06:55 Cumulative 139.2 hours Start 2025.07.06 @ 19:28:49 End 2025.07.06 @ 20:52:56 Sessions 2 Manual Loads 0 Difficulty Rogue Special Mode None Game No. 145 Rogue 145 Adventurer 0 Explorer 0 Win Type - Total 3 Types 1/0/0/1/0/0/0/0/0/1 Lore% 63 Gallery% 59 Achievement% 52 Wizard Run 0 Options --------- Layout 1 ASCII 0 Keyboard 1 Movement Numpad Keybinds 0 Fullscreen 1 Font 32/SmallcapsGlow Map View 77x35 Zoom Use 0% Tactical HUD 1 Map Filters NONE Filters NONE Steam 1 RUN: 4c472869-f9e2-48fc-a21f-481d9457df56